bitfinex-derivatives/quotes_BTCF0:USTF0_20250729
["timestamp","ask_amount","ask_price","bid_price","bid_amount"]
[1753816760063,1.05079247,118010.0,118000.0,0.3182948]
[1753816760263,1.25055736,118010.0,118000.0,0.5300348]
[1753816760464,1.22590247,118010.0,118000.0,0.5300348]
[1753816760667,0.59163247,118010.0,118000.0,0.5300348]
[1753816761164,0.59263247,118010.0,118000.0,0.5300348]
[1753816761464,0.61729231,118010.0,118000.0,0.5300348]
[1753816761664,0.17922217,118010.0,118000.0,0.5300348]
[1753816761864,0.48151217,118010.0,118000.0,0.5300348]
[1753816762160,0.07851,118010.0,118000.0,0.5300348]
[1753816762464,0.2480204,118010.0,118000.0,0.5300348]
[1753816762660,0.07851,118010.0,118000.0,0.5300348]
[1753816762861,0.3496204,118010.0,118000.0,0.5300348]
[1753816763062,0.4728004,118010.0,118000.0,0.5300348]
[1753816763261,0.5415304,118010.0,118000.0,0.5300348]
[1753816763660,0.5415304,118010.0,118000.0,0.36051]
[1753816763866,0.1695679,117970.0,117960.0,0.6572611]
[1753816764061,0.42596827,117970.0,117960.0,1.2114111]
[1753816764262,0.79698827,117970.0,117960.0,1.2114111]
[1753816764562,0.5405879,117970.0,117960.0,1.2114111]
[1753816765161,0.5405879,117970.0,117960.0,1.3621811]
[1753816766368,0.0312,117970.0,117960.0,1.3621811]
[1753816766570,0.200768,117970.0,117960.0,1.3621811]
[1753816767172,0.169568,117970.0,117960.0,1.3621811]
[1753816767777,0.490918,117970.0,117960.0,1.3621811]
[1753816767968,0.540588,117970.0,117960.0,1.3621811]
[1753816768164,0.79698837,117970.0,117960.0,0.6168661]
[1753816768365,0.79698837,117970.0,117960.0,1.3197861]
[1753816768564,0.79798837,117970.0,117960.0,1.3197861]
[1753816769868,0.80665485,117970.0,117960.0,1.3197861]
[1753816770269,0.80665485,117970.0,117960.0,0.6168661]
[1753816770470,0.79798837,117970.0,117960.0,0.6168661]
[1753816770872,0.79798837,117970.0,117960.0,0.6148661]
[1753816772566,0.80641034,117970.0,117960.0,0.6148661]
[1753816772870,0.79798837,117970.0,117960.0,0.6148661]
[1753816775688,0.541588,117970.0,117960.0,0.6148661]
[1753816776282,0.55019108,117970.0,117960.0,0.6148661]
[1753816776682,0.541588,117970.0,117960.0,0.6148661]
[1753816777796,0.79798837,117970.0,117960.0,0.6148661]
[1753816778493,0.541588,117970.0,117960.0,0.6148661]
[1753816780789,0.541588,117970.0,117960.0,0.3732361]
[1753816780990,0.541588,117970.0,117960.0,0.6148661]
[1753816781186,0.79798837,117970.0,117960.0,0.6148661]
[1753816785594,1.50074837,117970.0,117960.0,0.6148661]
[1753816786493,0.541588,117970.0,117960.0,0.6148661]
[1753816786987,0.001,117970.0,117960.0,0.6148661]
[1753816787395,0.001,117970.0,117960.0,0.87126647]
[1753816787694,0.170568,117970.0,117960.0,0.87126647]
[1753816788190,0.169568,117970.0,117960.0,0.87126647]
[1753816788396,0.169568,117970.0,117960.0,0.6158661]
[1753816788799,0.169568,117970.0,117960.0,0.6168661]
[1753816789597,0.169568,117970.0,117960.0,0.4564961]
[1753816792000,0.75942957,117980.0,117970.0,0.248978]
[1753816792199,0.78384231,117980.0,117970.0,0.366958]
[1753816792400,0.75942957,117980.0,117970.0,0.366958]
[1753816792992,0.4203105,117990.0,117980.0,0.2489636]
[1753816793206,0.47647432,117990.0,117980.0,0.3669436]
[1753816793701,0.4520526,117990.0,117980.0,0.3669436]
[1753816794703,0.5135626,117990.0,117980.0,0.3669436]
[1753816794896,0.5165626,117990.0,117980.0,0.3669436]
[1753816795303,0.5145626,117990.0,117980.0,0.3669436]
[1753816795503,0.5155626,117990.0,117980.0,0.3669436]
[1753816795703,0.77096297,117990.0,117980.0,0.3669436]
[1753816796305,0.77943202,117990.0,117980.0,0.3669436]
[1753816801713,0.77943202,117990.0,117980.0,0.2946836]
[1753816801910,0.4287936,117980.0,117970.0,0.1695545]
[1753816802212,0.68519397,117980.0,117970.0,0.1695545]
[1753816802408,0.169568,117970.0,117960.0,0.9990293]
[1753816802608,0.68520837,117970.0,117960.0,0.2967493]
[1753816802809,1.38748837,117970.0,117960.0,0.2543561]
[1753816803813,1.38748837,117970.0,117960.0,0.2563561]
[1753816804911,1.48797837,117970.0,117960.0,0.2563561]
[1753816806312,1.48797837,117970.0,117960.0,0.3020761]
[1753816806816,1.48797837,117970.0,117960.0,0.3000761]
[1753816807007,1.48897837,117970.0,117960.0,0.3000761]
[1753816808914,1.48897837,117970.0,117960.0,0.2543561]
[1753816810316,1.31941037,117970.0,117950.0,0.0847972]
[1753816810612,0.78571277,117960.0,117950.0,0.4550314]
[1753816810811,0.78571277,117960.0,117950.0,0.5470014]
[1753816811014,0.78571277,117960.0,117950.0,0.5778314]
[1753816811314,0.78571277,117960.0,117950.0,0.6500914]
[1753816811510,0.78571277,117960.0,117950.0,0.6510914]
[1753816811710,0.5293124,117960.0,117950.0,0.6520914]
[1753816811907,0.78571277,117960.0,117950.0,0.6520914]
[1753816812118,0.78571277,117960.0,117950.0,0.6510914]
[1753816812617,0.78571277,117960.0,117950.0,0.6520914]
[1753816813815,0.5293124,117960.0,117950.0,0.6520914]
[1753816814012,0.78571277,117960.0,117950.0,0.6520914]
[1753816823727,0.3072824,117960.0,117950.0,0.6520914]
[1753816823919,0.4061424,117960.0,117950.0,0.6520914]
[1753816824222,0.5200524,117960.0,117950.0,0.6520914]
[1753816828825,0.54447647,117960.0,117950.0,0.6520914]
[1753816832225,0.43156647,117960.0,117950.0,0.5312514]
[1753816833929,0.4071424,117960.0,117950.0,0.5312514]
[1753816835618,0.4939748,117980.0,117970.0,0.402858]
[1753816835921,0.26931967,117980.0,117970.0,0.402858]
[1753816836327,0.41424967,117980.0,117970.0,0.402858]
[1753816836527,0.47603967,117980.0,117970.0,0.402858]
[1753816836730,0.47703967,117980.0,117970.0,0.402858]
[1753816837327,0.4525844,117980.0,117970.0,0.402858]
[1753816838328,0.4545844,117980.0,117970.0,0.402858]
[1753816838630,0.4121956,117980.0,117970.0,0.402858]
[1753816838924,0.4111956,117980.0,117970.0,0.402858]
[1753816839229,0.03291,117980.0,117970.0,0.403858]
[1753816839425,0.37168044,117990.0,117980.0,0.4028436]
[1753816839630,0.44218267,117990.0,117980.0,0.4028436]
[1753816839930,0.41775044,117990.0,117980.0,0.4028436]
[1753816840830,0.53387044,117990.0,117980.0,0.5217736]
[1753816841529,0.53487044,117990.0,117980.0,0.5217736]
[1753816845531,0.5262892,117990.0,117980.0,0.5217736]
[1753816846333,0.001,117990.0,117980.0,0.5217736]
[1753816846534,0.1705392,117990.0,117980.0,0.5217736]
[1753816846734,0.3456592,117990.0,117980.0,0.5227736]
[1753816846937,0.4651292,117990.0,117980.0,0.5227736]
[1753816847126,0.5302392,117990.0,117980.0,0.5227736]
[1753816847323,0.5302393,117990.0,117980.0,0.5227736]
[1753816847522,0.3143793,117990.0,117980.0,0.5227736]
[1753816847723,0.5292393,117990.0,117980.0,0.5237736]
[1753816848127,0.31131,117990.0,117980.0,0.5237736]
[1753816848330,0.4157392,117990.0,117980.0,0.78017397]
[1753816848734,0.3597,117990.0,117980.0,0.78017397]
[1753816849033,0.3597,117990.0,117980.0,0.5237736]
[1753816851739,0.5292393,117990.0,117980.0,0.5237736]
[1753816852539,0.3597,117990.0,117980.0,0.5237736]
[1753816855038,0.07873,118000.0,117990.0,0.5222793]
[1753816855232,0.07873,118010.0,118000.0,0.5222649]
[1753816855436,0.03074,118010.0,118000.0,0.77866527]
[1753816855636,0.03074,118010.0,118000.0,0.5222649]
[1753816856136,0.2462,118010.0,118000.0,0.5222649]
[1753816856339,1.6331364,118030.0,118020.0,0.1694961]
[1753816856640,2.48481972,118030.0,118020.0,0.5222361]
[1753816856845,2.49352208,118030.0,118020.0,0.5222361]
[1753816857041,2.66099208,118030.0,118020.0,0.5222361]
[1753816857343,2.91739245,118030.0,118020.0,0.5222361]
[1753816857744,2.92039245,118030.0,118020.0,0.5222361]
[1753816858042,2.92339245,118030.0,118020.0,0.5222361]
[1753816858341,2.66699208,118030.0,118020.0,0.5222361]
[1753816858944,1.96675208,118030.0,118020.0,0.5222361]
[1753816859147,1.95804972,118030.0,118020.0,0.5222361]
[1753816859331,1.74217609,118030.0,118020.0,0.5222361]
[1753816859538,1.8913418,118030.0,118020.0,0.5222361]
[1753816862356,1.91564625,118030.0,118020.0,0.5222361]
[1753816866351,0.24522445,118030.0,118020.0,0.77863647]
[1753816866553,0.10903445,118030.0,118020.0,0.77863647]
[1753816867359,0.27650445,118030.0,118020.0,0.77863647]
[1753816867560,0.32489445,118030.0,118020.0,0.77863647]
[1753816867952,0.39000445,118030.0,118020.0,0.77863647]
[1753816868163,0.03030445,118030.0,118020.0,0.77863647]
[1753816868864,0.006,118030.0,118020.0,0.77863647]
[1753816869859,0.1754818,118030.0,118020.0,0.77863647]
[1753816870156,0.81587717,118030.0,118020.0,1.2217161]
[1753816870665,0.5594768,118030.0,118020.0,1.2217161]
[1753816871866,0.5594768,118030.0,118020.0,0.5222361]
[1753816872161,0.5594768,118030.0,118020.0,1.2215161]
[1753816872370,0.5351818,118030.0,118020.0,1.2215161]
[1753816872961,0.3657,118030.0,118020.0,1.2215161]
[1753816873160,0.006,118030.0,118020.0,1.47791647]
[1753816875261,0.03028674,118030.0,118020.0,1.47791647]
[1753816881167,0.03028674,118030.0,118020.0,1.2215161]
[1753816881361,0.15085674,118030.0,118020.0,0.77863647]
[1753816881568,0.15085674,118030.0,118020.0,1.47747647]
[1753816882366,0.15085674,118030.0,118020.0,1.2210761]
[1753816882870,0.16907674,118030.0,118020.0,0.5222361]
[1753816883167,0.80427891,118030.0,118020.0,1.0108561]
[1753816883354,0.80427891,118030.0,118020.0,0.2335761]
[1753816883560,0.80427891,118030.0,118020.0,0.8682161]
[1753816884872,0.5176061,118020.0,118010.0,1.013818]
[1753816885061,0.79829321,118020.0,118010.0,0.315138]
[1753816885256,0.79829321,118020.0,118010.0,0.2966253]
[1753816885460,0.79829321,118020.0,118010.0,0.4357753]
[1753816885771,0.79829321,118020.0,118010.0,0.2542488]
[1753816885965,0.80029321,118020.0,118010.0,0.2118736]
[1753816886570,0.80329321,118020.0,118010.0,0.2118736]
[1753816887367,1.50189321,118020.0,118010.0,0.2118736]
[1753816888173,0.297928,117970.0,117960.0,0.06767515]
[1753816888464,0.81072874,117970.0,117960.0,0.04886]
[1753816888957,0.2210767,117950.0,117940.0,0.30182]
[1753816889161,0.55435707,117950.0,117940.0,0.4714311]
[1753816889559,0.55435707,117950.0,117940.0,0.5202911]
[1753816889959,0.55435707,117950.0,117940.0,0.35068]
[1753816890365,0.55435707,117950.0,117940.0,0.35168]
[1753816890958,0.55435707,117950.0,117940.0,0.5212907]
[1753816891565,0.55435707,117950.0,117940.0,0.35168]
[1753816891761,0.55435707,117950.0,117940.0,0.35268]
[1753816891957,0.55435707,117950.0,117940.0,0.14607]
[1753816892167,0.55435707,117950.0,117940.0,0.4059707]
[1753816892564,0.55435707,117950.0,117940.0,0.23636]
[1753816892763,0.55435707,117950.0,117940.0,0.14607]
[1753816894062,0.55435707,117950.0,117940.0,0.4059707]
[1753816894266,0.55435707,117950.0,117940.0,0.23636]
[1753816895367,0.55435707,117950.0,117940.0,0.4059707]
[1753816895662,0.55435707,117950.0,117940.0,0.05086]
[1753816896470,0.297985,117930.0,117920.0,0.27944]
[1753816896671,1.25290537,117930.0,117920.0,0.04886]
[1753816897067,1.25290537,117930.0,117920.0,0.13915]
[1753816897464,1.25290537,117930.0,117920.0,0.04886]
[1753816897669,0.425235,117920.0,117910.0,0.04886]
[1753816897969,0.93803574,117920.0,117910.0,0.04886]
[1753816898465,0.68163537,117920.0,117910.0,0.04886]
[1753816898765,0.68163537,117920.0,117910.0,0.2185138]
[1753816898970,1.38019537,117920.0,117910.0,0.4040138]
[1753816899169,1.38019537,117920.0,117910.0,0.08178]
[1753816899170,1.63659574,117920.0,117910.0,0.08178]
[1753816899366,1.63659574,117920.0,117910.0,0.05086]
[1753816899758,1.38019537,117920.0,117910.0,0.05286]
[1753816899959,1.38015537,117920.0,117910.0,0.2225138]
[1753816900366,1.38015537,117920.0,117910.0,0.05286]
[1753816900765,1.38015537,117920.0,117910.0,0.2225138]
[1753816901271,1.38015537,117920.0,117910.0,0.05286]
[1753816901470,1.38015537,117920.0,117910.0,0.2225138]
[1753816902169,1.38015537,117920.0,117910.0,0.3128038]
[1753816903573,0.425235,117920.0,117910.0,0.4080138]
[1753816903872,1.38015537,117920.0,117910.0,0.5223638]
[1753816906273,1.40427428,117920.0,117910.0,0.5223638]
[1753816908473,1.66067465,117920.0,117910.0,0.5223638]
[1753816908676,1.40427428,117920.0,117910.0,0.4530938]
[1753816908875,1.40427428,117920.0,117910.0,0.28344]
[1753816909380,1.66067465,117920.0,117910.0,0.28344]
[1753816909577,1.66067465,117920.0,117910.0,0.23836]
[1753816909777,1.66067465,117920.0,117910.0,0.08578]
[1753816911875,1.66067465,117920.0,117910.0,0.18037]
[1753816912272,1.66067465,117920.0,117910.0,0.004]
[1753816912678,1.66067465,117920.0,117910.0,0.05392]
[1753816914180,1.66067465,117920.0,117910.0,0.2235738]
[1753816914382,1.66043465,117920.0,117910.0,0.2235738]
[1753816914582,1.66043465,117920.0,117910.0,0.4127938]
[1753816915077,1.66043465,117920.0,117910.0,0.24314]
[1753816915382,1.66043465,117920.0,117910.0,0.4127938]
[1753816915582,1.66043465,117920.0,117910.0,0.24314]
[1753816915782,1.66043465,117920.0,117910.0,0.08493]
[1753816915984,1.66043465,117920.0,117910.0,0.05392]
[1753816916487,1.73721876,117920.0,117910.0,0.03402084]
[1753816916684,0.3369638,117910.0,117900.0,0.4066565]
[1753816916891,0.61748308,117910.0,117900.0,0.4066565]
[1753816917185,0.61748308,117910.0,117900.0,0.4759265]
[1753816917377,0.60158308,117910.0,117900.0,0.3120665]
[1753816917583,0.61748308,117910.0,117900.0,0.237]
[1753816917779,0.61748308,117910.0,117900.0,0.4799382]
[1753816918089,0.61748308,117910.0,117900.0,0.31027]
[1753816918381,0.61748308,117910.0,117900.0,0.19833]
[1753816918587,0.67836719,117910.0,117900.0,0.15055]
[1753816918984,0.61748308,117910.0,117900.0,0.15055]
[1753816920391,0.67836719,117910.0,117900.0,0.006]
[1753816920592,0.67836719,117910.0,117900.0,0.05592]
[1753816921294,0.3210926,117890.0,117880.0,0.3121046]
[1753816921587,1.31563188,117890.0,117880.0,0.4066946]
[1753816921783,1.31563188,117890.0,117880.0,0.5258846]
[1753816922181,1.31563188,117890.0,117880.0,0.35619]
[1753816922586,1.31563188,117890.0,117880.0,0.29092]
[1753816922782,1.31563188,117890.0,117880.0,0.460617]
[1753816922985,1.32422993,117890.0,117880.0,0.460617]
[1753816923194,1.32422993,117890.0,117880.0,0.529887]
[1753816923397,1.06782956,117890.0,117880.0,0.533887]
[1753816923596,1.30832993,117890.0,117880.0,0.533887]
[1753816923894,1.30828993,117890.0,117880.0,0.532887]
[1753816924289,1.32418993,117890.0,117880.0,0.532887]
[1753816924494,1.32418993,117890.0,117880.0,0.226617]
[1753816924699,1.32418993,117890.0,117880.0,0.413837]
[1753816924888,1.3925022,117890.0,117880.0,0.530887]
[1753816925093,1.3924622,117890.0,117880.0,0.530887]
[1753816926901,1.3765622,117890.0,117880.0,0.530887]
[1753816927101,0.5525522,117890.0,117880.0,0.530887]
[1753816927292,0.26211378,117890.0,117880.0,0.530887]
[1753816927597,0.96011378,117890.0,117880.0,0.530887]
[1753816927797,1.07913378,117890.0,117880.0,0.530887]
[1753816928192,1.08180378,117890.0,117880.0,0.530887]
[1753816928999,1.33820415,117890.0,117880.0,0.530887]
[1753816930396,1.33820415,117890.0,117880.0,0.528887]
[1753816930592,1.35410415,117890.0,117880.0,0.528887]
[1753816931200,1.35410415,117890.0,117880.0,0.4596169]
[1753816931898,1.35410415,117890.0,117880.0,0.4118369]
[1753816932097,1.35410415,117890.0,117880.0,0.14755]
[1753816932289,1.35410415,117890.0,117880.0,0.05292]
[1753816932489,1.35410415,117890.0,117880.0,0.003]
[1753816933396,1.61050452,117890.0,117880.0,0.003]
[1753816933603,1.35410415,117890.0,117880.0,0.003]
[1753816934595,1.35410415,117890.0,117880.0,0.04844]
[1753816934795,1.61050452,117890.0,117880.0,0.04844]
[1753816934997,1.35410415,117890.0,117880.0,0.04844]
[1753816939708,1.35410415,117890.0,117880.0,0.218137]
[1753816940001,1.37922415,117890.0,117880.0,0.448447]
[1753816940299,1.37922415,117890.0,117880.0,0.446447]
[1753816940500,1.38022415,117890.0,117880.0,0.445447]
[1753816941001,0.68254415,117890.0,117880.0,0.445447]
[1753816941204,1.38022415,117890.0,117880.0,0.445447]
[1753816941391,1.38018415,117890.0,117880.0,0.445447]
[1753816941702,1.38018415,117890.0,117880.0,0.27575]
[1753816941903,1.44106826,117890.0,117880.0,0.27575]
[1753816942301,1.44106826,117890.0,117880.0,0.4454469]
[1753816942906,1.38018415,117890.0,117880.0,0.4454469]
[1753816943604,1.38010415,117890.0,117880.0,0.4454469]
[1753816944205,1.38010415,117890.0,117880.0,0.5199769]
[1753816946106,0.96063368,117890.0,117880.0,0.4454469]
[1753816946308,0.96063368,117890.0,117880.0,0.70184727]
[1753816946509,0.96063368,117890.0,117880.0,0.5199769]
[1753816946709,1.03492368,117890.0,117880.0,0.5199769]
[1753816946911,0.09343118,117890.0,117880.0,0.5199769]
[1753816947102,0.79091118,117890.0,117880.0,0.5199769]
[1753816947297,0.02511891,117890.0,117880.0,0.5199769]
[1753816947608,0.8671505,117900.0,117880.0,0.5199769]
[1753816947609,0.23616675,117900.0,117890.0,0.5199625]
[1753816947809,0.25625097,117900.0,117890.0,0.5199625]
[1753816948004,0.23616675,117900.0,117890.0,0.5199625]
[1753816948206,0.25625047,117900.0,117890.0,0.5199625]
[1753816948506,0.18975182,117900.0,117890.0,0.5199625]
[1753816949300,0.02008372,117900.0,117890.0,0.77636287]
[1753816949502,0.58403552,117930.0,117920.0,0.3082293]
[1753816949706,1.35576552,117930.0,117920.0,0.5199193]
[1753816950703,0.65832552,117930.0,117920.0,0.5199193]
[1753816950907,0.67422552,117930.0,117920.0,0.5199193]
[1753816951108,1.37158552,117930.0,117920.0,0.5199193]
[1753816951407,1.43993211,117930.0,117920.0,0.5199193]
[1753816951602,1.18353174,117930.0,117920.0,0.5199193]
[1753816951808,1.32289431,117930.0,117900.0,0.0424154]
[1753816952006,0.76920111,117910.0,117780.0,0.15119548]
[1753816952205,0.07338,117920.0,117790.0,0.11494297]
[1753816952206,0.42621257,117800.0,117790.0,0.11494297]
[1753816952401,0.042471,117750.0,117740.0,0.11518978]
[1753816952613,0.46875567,117750.0,117740.0,0.01203893]
[1753816953112,0.46875567,117750.0,117740.0,0.08826741]
[1753816953308,0.46875567,117750.0,117740.0,3e-08]
[1753816953515,0.2123553,117750.0,117740.0,3e-08]
[1753816953808,0.46875567,117750.0,117740.0,0.01903606]
[1753816954002,0.46875567,117750.0,117740.0,3e-08]
[1753816954405,0.1699128,117730.0,117720.0,0.13712003]
[1753816954812,0.1699128,117730.0,117720.0,0.21165003]
[1753816955913,0.1699128,117730.0,117720.0,0.22402382]
[1753816956219,0.1699128,117730.0,117720.0,0.21165003]
[1753816956417,0.1709128,117730.0,117720.0,0.21165003]
[1753816957018,0.1719128,117730.0,117720.0,0.21165003]
[1753816957723,0.1719128,117730.0,117720.0,0.60086996]
[1753816958311,0.1719128,117730.0,117720.0,0.21165003]
[1753816958712,0.1729128,117730.0,117720.0,0.21165003]
[1753816959722,0.1729128,117730.0,117720.0,0.85976]
[1753816960114,0.1729728,117730.0,117720.0,0.86028]
[1753816960517,0.1729728,117730.0,117720.0,0.8602]
[1753816961119,0.1729728,117730.0,117720.0,0.04544]
[1753816961318,0.1729728,117730.0,117720.0,0.8602]
[1753816961518,0.1729728,117730.0,117720.0,0.85956]
[1753816961814,0.1769728,117730.0,117720.0,0.85956]
[1753816962116,0.1699851,117720.0,117710.0,0.21169]
[1753816962309,0.1699851,117720.0,117710.0,0.04544]
[1753816962916,0.2009176,117710.0,117700.0,0.69405993]
[1753816963221,1.7463576,117710.0,117700.0,0.23031]
[1753816963622,1.8198076,117710.0,117700.0,0.23031]
[1753816964018,0.379631,117700.0,117690.0,0.34253]
[1753816964821,0.431451,117700.0,117690.0,0.32259813]
[1753816965024,0.431451,117700.0,117690.0,0.36978813]
[1753816966225,0.431451,117700.0,117690.0,0.19105]
[1753816966524,0.431451,117700.0,117690.0,0.31619]
[1753816966723,0.432451,117700.0,117690.0,0.31619]
[1753816966924,0.432451,117700.0,117690.0,0.38707]
[1753816967821,0.432451,117700.0,117690.0,0.04819]
[1753816968119,0.4314645,117690.0,117680.0,0.38617]
[1753816968320,0.4314645,117690.0,117680.0,0.0001]
[1753816968620,0.255025,117660.0,117650.0,0.19005]
[1753816968823,0.255025,117660.0,117650.0,0.77528993]
[1753816969026,1.755025,117660.0,117650.0,0.77528993]
[1753816969919,1.755025,117660.0,117650.0,0.77728993]
[1753816970122,1.755025,117660.0,117650.0,0.38807]
[1753816970318,1.828475,117660.0,117650.0,0.77728993]
[1753816970524,1.849405,117660.0,117650.0,0.77528993]
[1753816971422,1.756025,117660.0,117650.0,0.94531223]
[1753816972220,1.829475,117660.0,117650.0,0.92489519]
[1753816972626,1.829475,117660.0,117650.0,0.75487289]
[1753816973026,1.829475,117660.0,117650.0,0.92589519]
[1753816973226,1.829475,117660.0,117650.0,0.36665296]
[1753816973427,1.849405,117660.0,117650.0,0.92589529]
[1753816973621,1.849405,117660.0,117650.0,0.75587289]
[1753816973931,1.897955,117660.0,117650.0,0.36665296]
[1753816974129,1.897955,117660.0,117650.0,0.92589529]
[1753816974330,1.897955,117660.0,117650.0,0.75587289]
[1753816974530,1.897955,117660.0,117650.0,0.92589529]
[1753816974927,1.897955,117660.0,117650.0,0.8952696]
[1753816975420,1.897955,117660.0,117650.0,0.7252472]
[1753816975623,1.897955,117660.0,117650.0,0.33602727]
[1753816975823,1.897955,117660.0,117650.0,0.05091]
[1753816977022,1.897955,117660.0,117650.0,0.2209324]
[1753816977231,1.897955,117660.0,117650.0,0.17605]
[1753816977829,2.701795,117660.0,117650.0,0.17605]
[1753816978834,2.701795,117660.0,117650.0,0.29412]
[1753816979333,2.702795,117660.0,117650.0,0.29312]
[1753816980035,2.702795,117660.0,117650.0,0.4631422]
[1753816980234,2.702795,117660.0,117650.0,0.44272258]
[1753816980433,2.702795,117660.0,117650.0,0.83194251]
[1753816980835,2.702795,117660.0,117650.0,0.89260251]
[1753816981234,2.702795,117660.0,117650.0,0.89260271]
[1753816981433,2.702795,117660.0,117650.0,0.50338278]
[1753816981634,2.702795,117660.0,117650.0,0.89260271]
[1753816981829,2.702795,117660.0,117650.0,0.72258031]
[1753816982232,2.702795,117660.0,117650.0,0.77453281]
[1753816982433,1.757025,117660.0,117650.0,0.92489281]
[1753816983036,1.881775,117660.0,117650.0,0.92489281]
[1753816983233,1.922125,117660.0,117650.0,0.92489281]
[1753816984742,1.922125,117660.0,117650.0,1.72369281]
[1753816984937,1.837108,117660.0,117650.0,1.72369281]
[1753816986139,1.837108,117660.0,117650.0,1.33447288]
[1753816986334,1.837108,117660.0,117650.0,1.72369281]
[1753816987133,1.837108,117660.0,117650.0,0.75487031]
[1753816987339,1.837108,117660.0,117650.0,0.92489281]
[1753816989739,1.837108,117660.0,117650.0,0.97574378]
[1753816989938,1.837108,117660.0,117650.0,0.95532426]
[1753816990536,1.837108,117660.0,117650.0,0.97055172]
[1753816990742,1.857528,117660.0,117650.0,0.97055172]
[1753816991541,1.808978,117660.0,117650.0,0.89107172]
[1753816992145,1.808978,117660.0,117650.0,0.87113113]
[1753816992339,1.808978,117660.0,117650.0,0.87535874]
[1753816992646,1.808978,117660.0,117650.0,0.92112185]
[1753816993049,1.808978,117660.0,117650.0,1.52797158]
[1753816993245,1.808978,117660.0,117650.0,1.59885158]
[1753816993446,1.808978,117660.0,117650.0,0.80685158]
[1753816993948,1.808978,117660.0,117650.0,0.3870028]
[1753816994142,1.808978,117660.0,117650.0,0.77622273]
[1753816994347,1.808978,117660.0,117650.0,0.89698535]
[1753816994646,1.808978,117660.0,117650.0,0.85119962]
[1753816995651,1.808978,117660.0,117650.0,0.29195719]
[1753816995854,1.808978,117660.0,117650.0,0.68117712]
[1753816996042,1.808978,117660.0,117650.0,0.85119982]
[1753816997240,1.808978,117660.0,117650.0,0.91204173]
[1753816997952,1.808978,117660.0,117650.0,0.89162221]
[1753816998645,1.502,117660.0,117650.0,0.89162221]
[1753817000050,1.502,117660.0,117650.0,0.86099579]
[1753817000260,1.502,117660.0,117650.0,0.88564388]
[1753817001454,1.502,117660.0,117650.0,0.94683035]
[1753817001842,1.502,117660.0,117650.0,0.88564388]
[1753817002156,0.002,117660.0,117650.0,0.88564388]
[1753817002347,0.64195065,117680.0,117670.0,0.4941044]
[1753817002548,0.65774208,117680.0,117670.0,1.7273268]
[1753817002943,0.6506757,117680.0,117670.0,1.7317268]
[1753817003350,0.6506757,117680.0,117670.0,1.74701694]
[1753817003555,0.6536757,117680.0,117670.0,1.74701694]
[1753817004149,0.6506757,117680.0,117670.0,1.74700061]
[1753817004458,0.6516757,117680.0,117670.0,1.74700061]
[1753817004854,0.5251861,117680.0,117670.0,0.96216061]
[1753817005157,0.52654,117680.0,117670.0,1.68505612]
[1753817005750,0.53521974,117680.0,117670.0,1.74617627]
[1753817006560,0.53521974,117680.0,117670.0,1.71294701]
[1753817007059,0.53521974,117680.0,117670.0,1.32372708]
[1753817007259,0.53521974,117680.0,117670.0,1.71294701]
[1753817008263,0.53521974,117680.0,117670.0,0.92890701]
[1753817008464,0.53521974,117680.0,117670.0,0.40463495]
[1753817008758,0.53521974,117680.0,117670.0,0.11390015]
[1753817008960,1.31461974,117680.0,117670.0,0.23464015]
[1753817009156,0.36523974,117680.0,117670.0,0.38963015]
[1753817009360,0.36523974,117680.0,117670.0,0.88772473]
[1753817009562,0.36523974,117680.0,117670.0,0.96213695]
[1753817010560,0.36523974,117680.0,117670.0,0.94884488]
[1753817010858,0.36523974,117680.0,117670.0,0.94912067]
[1753817011261,0.35656,117680.0,117670.0,0.88376076]
[1753817011759,0.16214,117680.0,117670.0,0.88376076]
[1753817011959,0.42276035,117700.0,117690.0,0.1699659]
[1753817012167,0.59271185,117700.0,117690.0,1.69525414]
[1753817012466,0.42276035,117700.0,117690.0,1.66470285]
[1753817012763,0.42276035,117700.0,117690.0,1.61887592]
[1753817012967,0.59271185,117700.0,117690.0,1.61887592]
[1753817013166,0.42276035,117700.0,117690.0,1.61887592]
[1753817013364,0.59271185,117700.0,117690.0,1.66468979]
[1753817013766,0.60104855,117700.0,117690.0,1.66468979]
[1753817013968,0.60104855,117700.0,117690.0,1.49472389]
[1753817014858,0.60104855,117700.0,117690.0,1.66462086]
[1753817015067,0.60104855,117700.0,117690.0,1.5599339]
[1753817015466,0.60104855,117700.0,117690.0,0.32384808]
[1753817015660,0.60104855,117700.0,117690.0,0.06923808]
[1753817015859,0.99039437,117700.0,117690.0,0.06923808]
[1753817016465,0.99039437,117700.0,117690.0,0.05396412]
[1753817016661,0.60104855,117700.0,117690.0,0.05396445]
[1753817016969,0.99039437,117700.0,117690.0,0.06923808]
[1753817018566,0.99039437,117700.0,117670.0,0.06552015]
[1753817018567,0.4394205,117680.0,117670.0,0.06552015]
[1753817018767,1.60152632,117680.0,117670.0,0.06552015]
[1753817019566,1.60152632,117680.0,117670.0,0.06752015]
[1753817019964,0.1700094,117660.0,117650.0,0.84831167]
[1753817020161,0.34795979,117660.0,117650.0,0.57368547]
[1753817020669,0.39058979,117660.0,117650.0,0.48617167]
[1753817020863,0.39058979,117660.0,117650.0,0.65619547]
[1753817021370,0.39058979,117660.0,117650.0,0.87551749]
[1753817021666,0.39058979,117660.0,117650.0,0.87951749]
[1753817021973,0.39058979,117660.0,117650.0,1.05454139]
[1753817022170,0.39058979,117660.0,117650.0,0.49517167]
[1753817023173,0.39058979,117660.0,117650.0,0.42002]
[1753817023669,0.39058979,117660.0,117650.0,0.41562]
[1753817023972,0.39058979,117660.0,117650.0,0.41062]
[1753817024871,0.39158979,117660.0,117650.0,0.40662]
[1753817026275,0.39158979,117660.0,117650.0,0.79596582]
[1753817026773,0.39158979,117660.0,117650.0,0.40662]
[1753817028768,0.39158979,117660.0,117650.0,0.21638]
[1753817028967,0.39158979,117660.0,117650.0,0.33505]
[1753817029165,0.39158979,117660.0,117650.0,0.4027]
[1753817030475,0.39158979,117660.0,117650.0,0.42444355]
[1753817032680,0.39158979,117660.0,117650.0,0.48555356]
[1753817033980,0.78093561,117660.0,117650.0,0.23812355]
[1753817034171,0.78093561,117660.0,117650.0,0.07143355]
[1753817034368,0.78093561,117660.0,117650.0,0.02174355]
[1753817034569,0.2471846,117650.0,117640.0,0.45630001]
[1753817034774,0.4342646,117650.0,117640.0,0.39519]
[1753817035175,0.7586883,117650.0,117640.0,0.04902]
[1753817035378,1.810399,117640.0,117630.0,0.45630001]
[1753817035972,1.810399,117640.0,117630.0,0.95077721]
[1753817036580,1.767769,117640.0,117630.0,0.95077721]
[1753817036977,1.767769,117640.0,117630.0,0.62635351]
[1753817037177,1.767769,117640.0,117630.0,0.78272371]